[Event "Late-Titled-Tuesday-Blitz-October-10-2023"]
[Site "Chess.com"]
[Date "2023.10.10"]
[Round "5"]
[White "NigelDwarf"]
[Black "falzehope0"]
[Result "1-0"]
[WhiteElo "2547"]
[BlackElo "2355"]
[TimeControl "180+1"]
[EndTime "14:53:44 PDT"]
[Termination "NigelDwarf won by checkmate"]

1. Nf3 {[%clk 0:03:00.9]} 1... d5 {[%clk 0:02:55.6]} 2. c4 {[%clk 0:02:58.6]}
2... e6 {[%clk 0:02:54]} 3. g3 {[%clk 0:02:56.5]} 3... f5 {[%clk 0:02:51.5]} 4.
Bg2 {[%clk 0:02:56.1]} 4... Bd6 {[%clk 0:02:50.4]} 5. O-O {[%clk 0:02:56.1]}
5... f4 {[%clk 0:02:45.7]} 6. cxd5 {[%clk 0:02:48.4]} 6... fxg3 {[%clk
0:02:45.5]} 7. hxg3 {[%clk 0:02:33]} 7... exd5 {[%clk 0:02:44.8]} 8. Nc3 {[%clk
0:02:32]} 8... Nf6 {[%clk 0:02:44.1]} 9. Nb5 {[%clk 0:02:29.1]} 9... O-O {[%clk
0:02:40.6]} 10. Nxd6 {[%clk 0:02:28.2]} 10... Qxd6 {[%clk 0:02:41.5]} 11. d4
{[%clk 0:02:27.2]} 11... Ng4 {[%clk 0:02:40.7]} 12. Bf4 {[%clk 0:02:24.7]} 12...
Qg6 {[%clk 0:02:15.3]} 13. Ne5 {[%clk 0:01:48.9]} 13... Nxe5 {[%clk 0:02:13.4]}
14. dxe5 {[%clk 0:01:43.8]} 14... c6 {[%clk 0:02:12.8]} 15. Qb3 {[%clk
0:01:28.6]} 15... Na6 {[%clk 0:02:09.4]} 16. Rac1 {[%clk 0:01:25.7]} 16... Nc7
{[%clk 0:02:06.1]} 17. e4 {[%clk 0:01:22.3]} 17... Ne6 {[%clk 0:01:42.9]} 18.
exd5 {[%clk 0:00:53.5]} 18... Nxf4 {[%clk 0:01:42.5]} 19. gxf4 {[%clk
0:00:53.7]} 19... cxd5 {[%clk 0:01:32]} 20. Qg3 {[%clk 0:00:40.9]} 20... Qh6
{[%clk 0:01:26.6]} 21. Rc7 {[%clk 0:00:38.2]} 21... Be6 {[%clk 0:01:12.1]} 22.
Rfc1 {[%clk 0:00:18.8]} 22... Kh8 {[%clk 0:01:02.6]} 23. Re7 {[%clk 0:00:17.9]}
23... Rac8 {[%clk 0:00:48.8]} 24. Rxc8 {[%clk 0:00:15.8]} 24... Rxc8 {[%clk
0:00:48.7]} 25. Rxb7 {[%clk 0:00:10.3]} 25... a5 {[%clk 0:00:36.7]} 26. Qg5
{[%clk 0:00:09]} 26... Rc1+ {[%clk 0:00:17.6]} 27. Bf1 {[%clk 0:00:08.5]} 27...
Qxg5+ {[%clk 0:00:16.4]} 28. fxg5 {[%clk 0:00:07.9]} 28... g6 {[%clk 0:00:14.6]}
29. Kg2 {[%clk 0:00:06.5]} 29... d4 {[%clk 0:00:13.4]} 30. Rb8+ {[%clk
0:00:04.5]} 30... Kg7 {[%clk 0:00:13.5]} 31. Be2 {[%clk 0:00:04.4]} 31... Bd5+
{[%clk 0:00:12.5]} 32. Bf3 {[%clk 0:00:05.1]} 32... Bxf3+ {[%clk 0:00:12.7]} 33.
Kxf3 {[%clk 0:00:06]} 33... Kf7 {[%clk 0:00:12.8]} 34. Rd8 {[%clk 0:00:05.4]}
34... Rd1 {[%clk 0:00:11.7]} 35. Ke4 {[%clk 0:00:05.4]} 35... Ke6 {[%clk
0:00:11.3]} 36. Re8+ {[%clk 0:00:05.5]} 36... Kd7 {[%clk 0:00:11.2]} 37. Ra8
{[%clk 0:00:05.8]} 37... Ke6 {[%clk 0:00:11.2]} 38. Ra6+ {[%clk 0:00:05.8]}
38... Ke7 {[%clk 0:00:11.4]} 39. Rd6 {[%clk 0:00:06.2]} 39... Rf1 {[%clk
0:00:10.6]} 40. f4 {[%clk 0:00:06.1]} 40... Re1+ {[%clk 0:00:10.7]} 41. Kxd4
{[%clk 0:00:06.5]} 41... Rd1+ {[%clk 0:00:11.3]} 42. Ke4 {[%clk 0:00:06.7]}
42... Rxd6 {[%clk 0:00:10.9]} 43. exd6+ {[%clk 0:00:07.6]} 43... Kxd6 {[%clk
0:00:11]} 44. b3 {[%clk 0:00:08.3]} 44... Kc5 {[%clk 0:00:11.4]} 45. Kd3 {[%clk
0:00:08.1]} 45... Kb4 {[%clk 0:00:11.5]} 46. Kc2 {[%clk 0:00:07.8]} 46... Ka3
{[%clk 0:00:11.7]} 47. Kb1 {[%clk 0:00:08.4]} 47... Kb4 {[%clk 0:00:12.1]} 48.
Kb2 {[%clk 0:00:08.7]} 48... Kc5 {[%clk 0:00:12.1]} 49. Kc3 {[%clk 0:00:09]}
49... Kd5 {[%clk 0:00:11.2]} 50. b4 {[%clk 0:00:08.4]} 50... axb4+ {[%clk
0:00:11.1]} 51. Kxb4 {[%clk 0:00:08.8]} 51... Ke4 {[%clk 0:00:11.8]} 52. a4
{[%clk 0:00:08.9]} 52... Kxf4 {[%clk 0:00:12.7]} 53. a5 {[%clk 0:00:09.6]} 53...
Kxg5 {[%clk 0:00:13.5]} 54. a6 {[%clk 0:00:10.5]} 54... h5 {[%clk 0:00:14.3]}
55. a7 {[%clk 0:00:11.4]} 55... Kh4 {[%clk 0:00:14.9]} 56. a8=Q {[%clk
0:00:12.3]} 56... g5 {[%clk 0:00:15.2]} 57. Qh1+ {[%clk 0:00:11.2]} 57... Kg4
{[%clk 0:00:15.1]} 58. Kc3 {[%clk 0:00:12.1]} 58... h4 {[%clk 0:00:14.9]} 59.
Kd2 {[%clk 0:00:13]} 59... Kg3 {[%clk 0:00:15]} 60. Ke2 {[%clk 0:00:13]} 60...
g4 {[%clk 0:00:15.2]} 61. Kf1 {[%clk 0:00:12.8]} 61... h3 {[%clk 0:00:15.4]} 62.
Qg1+ {[%clk 0:00:12.5]} 62... Kh4 {[%clk 0:00:15.9]} 63. Kf2 {[%clk 0:00:12.9]}
63... Kg5 {[%clk 0:00:14]} 64. Kg3 {[%clk 0:00:12.9]} 64... Kh5 {[%clk
0:00:13.8]} 65. Qf2 {[%clk 0:00:12.3]} 65... Kg5 {[%clk 0:00:13.5]} 66. Qf4+
{[%clk 0:00:12.3]} 66... Kg6 {[%clk 0:00:13.7]} 67. Qxg4+ {[%clk 0:00:12.6]}
67... Kf6 {[%clk 0:00:14.6]} 68. Qxh3 {[%clk 0:00:13.2]} 68... Ke5 {[%clk
0:00:14.9]} 69. Qg4 {[%clk 0:00:13.4]} 69... Kd5 {[%clk 0:00:14.9]} 70. Qf4
{[%clk 0:00:13.8]} 70... Ke6 {[%clk 0:00:15.1]} 71. Kg4 {[%clk 0:00:13.9]} 71...
Ke7 {[%clk 0:00:14.8]} 72. Qf5 {[%clk 0:00:14.1]} 72... Kd6 {[%clk 0:00:15.1]}
73. Kg5 {[%clk 0:00:14.5]} 73... Ke7 {[%clk 0:00:16]} 74. Qg6 {[%clk 0:00:14.6]}
74... Kd7 {[%clk 0:00:15.5]} 75. Kf5 {[%clk 0:00:15]} 75... Ke7 {[%clk 0:00:16]}
76. Ke5 {[%clk 0:00:15.1]} 76... Kd7 {[%clk 0:00:16.1]} 77. Qe6+ {[%clk
0:00:15.4]} 77... Kc7 {[%clk 0:00:16.6]} 78. Kd5 {[%clk 0:00:15.6]} 78... Kb7
{[%clk 0:00:16.8]} 79. Kc5 {[%clk 0:00:15.9]} 79... Kc7 {[%clk 0:00:16]} 80.
Qe7+ {[%clk 0:00:16.2]} 80... Kb8 {[%clk 0:00:16.2]} 81. Kb6 {[%clk 0:00:16.9]}
81... Kc8 {[%clk 0:00:16]} 82. Qc7# {[%clk 0:00:17.3]} 1-0

[Event "Late-Titled-Tuesday-Blitz-October-10-2023"]
[Site "Chess.com"]
[Date "2023.10.10"]
[Round "5"]
[White "giomar27"]
[Black "Grossboss19"]
[Result "1/2-1/2"]
[WhiteElo "2289"]
[BlackElo "2493"]
[TimeControl "180+1"]
[EndTime "14:53:44 PDT"]
[Termination "Game drawn by stalemate"]

1. e4 {[%clk 0:02:59.8]} 1... c5 {[%clk 0:02:58.8]} 2. Nc3 {[%clk 0:02:58.6]}
2... Nc6 {[%clk 0:02:59.4]} 3. Nf3 {[%clk 0:02:57.7]} 3... a6 {[%clk 0:02:59.4]}
4. a4 {[%clk 0:02:51.9]} 4... g6 {[%clk 0:02:57.8]} 5. g3 {[%clk 0:02:48]} 5...
Bg7 {[%clk 0:02:57.5]} 6. Bg2 {[%clk 0:02:48.1]} 6... e6 {[%clk 0:02:56.7]} 7.
O-O {[%clk 0:02:48]} 7... Nge7 {[%clk 0:02:57.1]} 8. d3 {[%clk 0:02:43]} 8...
O-O {[%clk 0:02:57.1]} 9. Bg5 {[%clk 0:02:29.3]} 9... h6 {[%clk 0:02:55.6]} 10.
Be3 {[%clk 0:02:29.4]} 10... d6 {[%clk 0:02:55.2]} 11. Qd2 {[%clk 0:02:29.2]}
11... g5 {[%clk 0:02:55.7]} 12. h3 {[%clk 0:02:27.3]} 12... f5 {[%clk
0:02:53.9]} 13. Nh2 {[%clk 0:02:21.5]} 13... Ng6 {[%clk 0:02:38]} 14. exf5
{[%clk 0:02:16.8]} 14... exf5 {[%clk 0:02:37.8]} 15. f4 {[%clk 0:02:10.8]} 15...
gxf4 {[%clk 0:02:36.6]} 16. Bxf4 {[%clk 0:02:10.7]} 16... Nxf4 {[%clk
0:02:35.5]} 17. Qxf4 {[%clk 0:02:08.6]} 17... Nd4 {[%clk 0:02:32.5]} 18. Qd2
{[%clk 0:02:01.1]} 18... Kh8 {[%clk 0:02:29.3]} 19. Nd5 {[%clk 0:01:59.8]} 19...
Be6 {[%clk 0:02:25.2]} 20. Rae1 {[%clk 0:01:59]} 20... Bxd5 {[%clk 0:02:18.5]}
21. Bxd5 {[%clk 0:01:58.6]} 21... Ra7 {[%clk 0:01:57.2]} 22. c3 {[%clk
0:01:58.5]} 22... Nc6 {[%clk 0:01:57.3]} 23. Nf3 {[%clk 0:01:58.8]} 23... Ne5
{[%clk 0:01:55.3]} 24. Nh4 {[%clk 0:01:58.2]} 24... Qg5 {[%clk 0:01:35.6]} 25.
Qxg5 {[%clk 0:01:50.9]} 25... hxg5 {[%clk 0:01:36.5]} 26. Nxf5 {[%clk
0:01:51.6]} 26... b5 {[%clk 0:01:34.2]} 27. Nxg7 {[%clk 0:01:35.8]} 27... Kxg7
{[%clk 0:01:24.9]} 28. Rxf8 {[%clk 0:01:34.9]} 28... Kxf8 {[%clk 0:01:25.8]} 29.
d4 {[%clk 0:01:31.7]} 29... Nd3 {[%clk 0:01:19.2]} 30. Rf1+ {[%clk 0:01:26.8]}
30... Kg7 {[%clk 0:01:18.5]} 31. b3 {[%clk 0:01:16.7]} 31... Re7 {[%clk
0:01:11.2]} 32. axb5 {[%clk 0:01:12.2]} 32... axb5 {[%clk 0:01:11.1]} 33. dxc5
{[%clk 0:01:10.7]} 33... dxc5 {[%clk 0:01:09]} 34. Kg2 {[%clk 0:00:45.8]} 34...
Re3 {[%clk 0:00:58.8]} 35. Rf7+ {[%clk 0:00:39.9]} 35... Kg6 {[%clk 0:00:55.7]}
36. Rb7 {[%clk 0:00:39.3]} 36... b4 {[%clk 0:00:53.9]} 37. cxb4 {[%clk
0:00:37.2]} 37... cxb4 {[%clk 0:00:53.8]} 38. Bf7+ {[%clk 0:00:36.2]} 38... Kf6
{[%clk 0:00:52.4]} 39. Bc4 {[%clk 0:00:35.4]} 39... Ne1+ {[%clk 0:00:30.8]} 40.
Kf2 {[%clk 0:00:23.4]} 40... Nc2 {[%clk 0:00:30.7]} 41. Rb6+ {[%clk 0:00:17.3]}
41... Ke5 {[%clk 0:00:25.5]} 42. Re6+ {[%clk 0:00:16.7]} 42... Kd4 {[%clk
0:00:24.4]} 43. Rxe3 {[%clk 0:00:16.3]} 43... Nxe3 {[%clk 0:00:25]} 44. Bf7
{[%clk 0:00:15]} 44... Nf5 {[%clk 0:00:20.6]} 45. Kf3 {[%clk 0:00:13.4]} 45...
Ke5 {[%clk 0:00:16.7]} 46. Bc4 {[%clk 0:00:12.3]} 46... Kf6 {[%clk 0:00:15.6]}
47. Bd3 {[%clk 0:00:07.1]} 47... Nd4+ {[%clk 0:00:15.3]} 48. Kg4 {[%clk
0:00:06.9]} 48... Nxb3 {[%clk 0:00:15.2]} 49. h4 {[%clk 0:00:06.8]} 49... gxh4
{[%clk 0:00:13.1]} 50. gxh4 {[%clk 0:00:07.7]} 50... Nc5 {[%clk 0:00:12.1]} 51.
Bb1 {[%clk 0:00:07.8]} 51... b3 {[%clk 0:00:09.9]} 52. Kf4 {[%clk 0:00:08.4]}
52... Na4 {[%clk 0:00:06.4]} 53. Bd3 {[%clk 0:00:06.6]} 53... b2 {[%clk
0:00:05.5]} 54. h5 {[%clk 0:00:07]} 54... Nc3 {[%clk 0:00:04.1]} 55. h6 {[%clk
0:00:07.2]} 55... Nd5+ {[%clk 0:00:03.4]} 56. Kg4 {[%clk 0:00:06.5]} 56... Ne3+
{[%clk 0:00:01.9]} 57. Kf3 {[%clk 0:00:06.2]} 57... Nc4 {[%clk 0:00:02.8]} 58.
Bc2 {[%clk 0:00:04.8]} 58... Na3 {[%clk 0:00:02.5]} 59. Bd3 {[%clk 0:00:04.5]}
59... Nb5 {[%clk 0:00:02.8]} 60. h7 {[%clk 0:00:04.6]} 60... Kg7 {[%clk
0:00:02.7]} 61. Ke4 {[%clk 0:00:04.9]} 61... Nc3+ {[%clk 0:00:02.3]} 62. Ke3
{[%clk 0:00:04.2]} 62... Nd5+ {[%clk 0:00:02.1]} 63. Kd2 {[%clk 0:00:04.6]}
63... Nb4 {[%clk 0:00:02.5]} 64. Bb1 {[%clk 0:00:04.3]} 64... Kh8 {[%clk
0:00:02.1]} 65. Kc3 {[%clk 0:00:04.9]} 65... Nd5+ {[%clk 0:00:02.4]} 66. Kxb2
{[%clk 0:00:05.4]} 66... Ne7 {[%clk 0:00:03.3]} 67. Kb3 {[%clk 0:00:06]} 67...
Kg7 {[%clk 0:00:03.7]} 68. Kc4 {[%clk 0:00:06.6]} 68... Kh8 {[%clk 0:00:04.6]}
69. Kc5 {[%clk 0:00:06.5]} 69... Ng6 {[%clk 0:00:05.5]} 70. Kd6 {[%clk
0:00:07.1]} 70... Nh4 {[%clk 0:00:06.4]} 71. Ke7 {[%clk 0:00:07.3]} 71... Ng2
{[%clk 0:00:07.3]} 72. Kf6 {[%clk 0:00:07.7]} 72... Ne3 {[%clk 0:00:08.2]} 73.
Kg5 {[%clk 0:00:08.3]} 73... Nd1 {[%clk 0:00:09.1]} 74. Kh6 {[%clk 0:00:08.8]}
74... Nc3 {[%clk 0:00:10]} 75. Bc2 {[%clk 0:00:09.3]} 75... Nb1 {[%clk
0:00:10.9]} 76. Bxb1 {[%clk 0:00:10.2]} 1/2-1/2

[Event "Late-Titled-Tuesday-Blitz-October-10-2023"]
[Site "Chess.com"]
[Date "2023.10.10"]
[Round "5"]
[White "Alex_Sahakyan2006"]
[Black "Angry_Twin"]
[Result "1-0"]
[WhiteElo "2742"]
[BlackElo "2938"]
[TimeControl "180+1"]
[EndTime "14:53:55 PDT"]
[Termination "Alex_Sahakyan2006 won by checkmate"]

1. e4 {[%clk 0:03:00.9]} 1... c5 {[%clk 0:02:57]} 2. Nc3 {[%clk 0:02:58.8]} 2...
d6 {[%clk 0:02:57.2]} 3. Nf3 {[%clk 0:02:57.1]} 3... Nf6 {[%clk 0:02:57.1]} 4.
e5 {[%clk 0:02:56.1]} 4... dxe5 {[%clk 0:02:58]} 5. Nxe5 {[%clk 0:02:56.6]} 5...
a6 {[%clk 0:02:58.7]} 6. a4 {[%clk 0:02:56.2]} 6... g6 {[%clk 0:02:54.9]} 7. Bc4
{[%clk 0:02:54.7]} 7... e6 {[%clk 0:02:54.6]} 8. Qf3 {[%clk 0:02:51.1]} 8... Bg7
{[%clk 0:02:50.8]} 9. d3 {[%clk 0:02:51.2]} 9... O-O {[%clk 0:02:39]} 10. O-O
{[%clk 0:02:50.5]} 10... Nbd7 {[%clk 0:02:37.5]} 11. Nxd7 {[%clk 0:02:49.5]}
11... Nxd7 {[%clk 0:02:37.7]} 12. Bb3 {[%clk 0:02:42.7]} 12... Ne5 {[%clk
0:02:37.4]} 13. Qg3 {[%clk 0:02:38.4]} 13... Nc6 {[%clk 0:02:37.4]} 14. Be3
{[%clk 0:02:22.2]} 14... Nd4 {[%clk 0:02:37]} 15. Bxd4 {[%clk 0:02:14.6]} 15...
Qxd4 {[%clk 0:02:35.9]} 16. a5 {[%clk 0:02:12]} 16... Bd7 {[%clk 0:02:33.6]} 17.
Ba4 {[%clk 0:02:12]} 17... Rad8 {[%clk 0:02:28.4]} 18. Bxd7 {[%clk 0:02:11]}
18... Rxd7 {[%clk 0:02:29.3]} 19. Ra4 {[%clk 0:02:10.6]} 19... Qd6 {[%clk
0:02:21]} 20. Qxd6 {[%clk 0:02:09.9]} 20... Rxd6 {[%clk 0:02:21.9]} 21. Rc4
{[%clk 0:02:10.2]} 21... Rc8 {[%clk 0:02:22.4]} 22. Ra1 {[%clk 0:02:06.8]} 22...
f5 {[%clk 0:02:15]} 23. Ra3 {[%clk 0:02:01.7]} 23... Rd4 {[%clk 0:01:45.9]} 24.
Rb3 {[%clk 0:01:59.7]} 24... Rxc4 {[%clk 0:01:44.5]} 25. dxc4 {[%clk 0:02:00.6]}
25... Rc7 {[%clk 0:01:44]} 26. Na4 {[%clk 0:02:00.1]} 26... Rd7 {[%clk
0:01:22.9]} 27. Kf1 {[%clk 0:01:49.7]} 27... Rc7 {[%clk 0:01:06.7]} 28. Rd3
{[%clk 0:01:38.6]} 28... Bf6 {[%clk 0:01:06.7]} 29. Ke2 {[%clk 0:01:30.7]} 29...
Kf7 {[%clk 0:01:06.6]} 30. Rd6 {[%clk 0:01:23.9]} 30... Ke7 {[%clk 0:00:59.9]}
31. Rb6 {[%clk 0:01:23.9]} 31... g5 {[%clk 0:01:00.3]} 32. h3 {[%clk 0:01:21.7]}
32... Be5 {[%clk 0:01:00.2]} 33. f3 {[%clk 0:01:07]} 33... h5 {[%clk 0:00:59.6]}
34. g4 {[%clk 0:01:06.4]} 34... fxg4 {[%clk 0:00:58.6]} 35. fxg4 {[%clk
0:01:06.2]} 35... h4 {[%clk 0:00:59.3]} 36. Kf3 {[%clk 0:01:04.4]} 36... Bf4
{[%clk 0:00:48.8]} 37. Ke4 {[%clk 0:01:02.7]} 37... Kf6 {[%clk 0:00:46.2]} 38.
Nc3 {[%clk 0:01:01.8]} 38... Rd7 {[%clk 0:00:44.7]} 39. Nd5+ {[%clk 0:01:01]}
39... Kf7 {[%clk 0:00:35.5]} 40. Nxf4 {[%clk 0:01:00.8]} 40... Rd4+ {[%clk
0:00:33.7]} 41. Ke5 {[%clk 0:01:00.6]} 41... gxf4 {[%clk 0:00:34.4]} 42. Rxb7+
{[%clk 0:01:00.6]} 42... Kg6 {[%clk 0:00:34.8]} 43. Rb6 {[%clk 0:00:48.2]} 43...
f3 {[%clk 0:00:30.1]} 44. Rxe6+ {[%clk 0:00:47.5]} 44... Kg5 {[%clk 0:00:30.6]}
45. Rf6 {[%clk 0:00:46.5]} 45... Rxc4 {[%clk 0:00:26.7]} 46. Rf5+ {[%clk
0:00:46.7]} 46... Kg6 {[%clk 0:00:25.7]} 47. c3 {[%clk 0:00:46.2]} 47... Ra4
{[%clk 0:00:26]} 48. Rxf3 {[%clk 0:00:45.1]} 48... Rxa5 {[%clk 0:00:26.5]} 49.
Kd5 {[%clk 0:00:45.6]} 49... Rb5 {[%clk 0:00:27.1]} 50. Rf2 {[%clk 0:00:45.3]}
50... Kg5 {[%clk 0:00:26.9]} 51. Kc4 {[%clk 0:00:45.1]} 51... Kg6 {[%clk
0:00:27.2]} 52. b3 {[%clk 0:00:45.4]} 52... Ra5 {[%clk 0:00:24]} 53. Rf5 {[%clk
0:00:44.1]} 53... Ra2 {[%clk 0:00:23.9]} 54. Rh5 {[%clk 0:00:40.3]} 54... a5
{[%clk 0:00:18.4]} 55. Rxh4 {[%clk 0:00:35.2]} 55... a4 {[%clk 0:00:18.9]} 56.
bxa4 {[%clk 0:00:27.4]} 56... Rxa4+ {[%clk 0:00:19.8]} 57. Kxc5 {[%clk
0:00:28.1]} 57... Rf4 {[%clk 0:00:20]} 58. Rh5 {[%clk 0:00:27.7]} 58... Rf3
{[%clk 0:00:20.5]} 59. c4 {[%clk 0:00:28.1]} 59... Rd3 {[%clk 0:00:19.7]} 60.
Kb6 {[%clk 0:00:28]} 60... Rb3+ {[%clk 0:00:19.9]} 61. Rb5 {[%clk 0:00:28.6]}
61... Rxh3 {[%clk 0:00:20]} 62. c5 {[%clk 0:00:28.8]} 62... Kf7 {[%clk
0:00:19.1]} 63. c6 {[%clk 0:00:29.3]} 63... Ke7 {[%clk 0:00:18]} 64. c7 {[%clk
0:00:29.7]} 64... Rc3 {[%clk 0:00:16]} 65. Kb7 {[%clk 0:00:30]} 65... Kd7 {[%clk
0:00:05.6]} 66. Rd5+ {[%clk 0:00:29.7]} 66... Ke6 {[%clk 0:00:05.9]} 67. Rd4
{[%clk 0:00:29.8]} 67... Rb3+ {[%clk 0:00:03.9]} 68. Kc6 {[%clk 0:00:29.1]}
68... Rc3+ {[%clk 0:00:04.4]} 69. Kb6 {[%clk 0:00:26.4]} 69... Ke7 {[%clk
0:00:04.9]} 70. Rd8 {[%clk 0:00:25.4]} 70... Rb3+ {[%clk 0:00:05]} 71. Ka5
{[%clk 0:00:25.5]} 71... Rg3 {[%clk 0:00:02.6]} 72. c8=Q {[%clk 0:00:24.2]}
72... Re3 {[%clk 0:00:02.7]} 73. Re8+ {[%clk 0:00:24]} 73... Kf6 {[%clk
0:00:03]} 74. Qf5+ {[%clk 0:00:23.3]} 74... Kg7 {[%clk 0:00:03.2]} 75. Rxe3
{[%clk 0:00:22.6]} 75... Kh6 {[%clk 0:00:03.1]} 76. Qf6+ {[%clk 0:00:22.4]}
76... Kh7 {[%clk 0:00:03.3]} 77. Rh3+ {[%clk 0:00:23.1]} 77... Kg8 {[%clk
0:00:04.2]} 78. Rh8# {[%clk 0:00:23.9]} 1-0

[Event "Late-Titled-Tuesday-Blitz-October-10-2023"]
[Site "Chess.com"]
[Date "2023.10.10"]
[Round "5"]
[White "luizzy"]
[Black "wild3000"]
[Result "1-0"]
[WhiteElo "2544"]
[BlackElo "2310"]
[TimeControl "180+1"]
[EndTime "14:53:58 PDT"]
[Termination "luizzy won by resignation"]

1. b3 {[%clk 0:03:00.9]} 1... a5 {[%clk 0:02:47.1]} 2. c4 {[%clk 0:03:00.4]}
2... e6 {[%clk 0:02:46.1]} 3. Bb2 {[%clk 0:02:58.5]} 3... d5 {[%clk 0:02:46.3]}
4. Nf3 {[%clk 0:02:57.4]} 4... Nf6 {[%clk 0:02:46.2]} 5. e3 {[%clk 0:02:56.5]}
5... Be7 {[%clk 0:02:46]} 6. Be2 {[%clk 0:02:56.3]} 6... O-O {[%clk 0:02:46]} 7.
O-O {[%clk 0:02:57]} 7... b6 {[%clk 0:02:44.9]} 8. d4 {[%clk 0:02:47.2]} 8...
Bb7 {[%clk 0:02:43.7]} 9. Ne5 {[%clk 0:02:46.8]} 9... Nbd7 {[%clk 0:02:43.2]}
10. Nc3 {[%clk 0:02:42.6]} 10... Nxe5 {[%clk 0:02:40.6]} 11. dxe5 {[%clk
0:02:42.8]} 11... Ne4 {[%clk 0:02:40.5]} 12. Nxe4 {[%clk 0:02:33.9]} 12... dxe4
{[%clk 0:02:41.4]} 13. Qc2 {[%clk 0:02:29.6]} 13... Qd7 {[%clk 0:02:27.1]} 14.
Rfd1 {[%clk 0:02:10.8]} 14... Qc6 {[%clk 0:02:26.7]} 15. h3 {[%clk 0:01:56.4]}
15... Rfd8 {[%clk 0:02:25.2]} 16. Rd4 {[%clk 0:01:52]} 16... Bc5 {[%clk
0:02:22.1]} 17. Rxd8+ {[%clk 0:01:50.5]} 17... Rxd8 {[%clk 0:02:23]} 18. Rd1
{[%clk 0:01:50.5]} 18... Rxd1+ {[%clk 0:02:20.5]} 19. Qxd1 {[%clk 0:01:51.1]}
19... Be7 {[%clk 0:02:19.9]} 20. Qd4 {[%clk 0:01:43]} 20... h6 {[%clk
0:01:48.9]} 21. Bd1 {[%clk 0:01:42.6]} 21... Kf8 {[%clk 0:01:26]} 22. Bc2 {[%clk
0:01:33.7]} 22... Ke8 {[%clk 0:01:24]} 23. Kf1 {[%clk 0:01:30.5]} 23... Bc5
{[%clk 0:01:19.5]} 24. Qd1 {[%clk 0:01:26.9]} 24... Qd7 {[%clk 0:01:18.3]} 25.
Bd4 {[%clk 0:01:23.2]} 25... Be7 {[%clk 0:01:09.7]} 26. Qg4 {[%clk 0:01:18.8]}
26... g6 {[%clk 0:00:55.9]} 27. Bxe4 {[%clk 0:01:03.2]} 27... Bxe4 {[%clk
0:00:53.9]} 28. Qxe4 {[%clk 0:01:03.2]} 28... c5 {[%clk 0:00:54.2]} 29. Bc3
{[%clk 0:00:57.7]} 29... Qd1+ {[%clk 0:00:51.8]} 30. Be1 {[%clk 0:00:58.3]}
30... Kf8 {[%clk 0:00:45.9]} 31. Qg4 {[%clk 0:00:40.6]} 31... Qd3+ {[%clk
0:00:36.4]} 32. Qe2 {[%clk 0:00:40.8]} 32... Qb1 {[%clk 0:00:35.2]} 33. f4
{[%clk 0:00:37.9]} 33... h5 {[%clk 0:00:34.5]} 34. g3 {[%clk 0:00:33.5]} 34...
Kg7 {[%clk 0:00:33.4]} 35. Kf2 {[%clk 0:00:32]} 35... h4 {[%clk 0:00:28.6]} 36.
g4 {[%clk 0:00:31.7]} 36... Qe4 {[%clk 0:00:27.5]} 37. Bc3 {[%clk 0:00:23]}
37... a4 {[%clk 0:00:22.4]} 38. Kg1 {[%clk 0:00:17]} 38... a3 {[%clk 0:00:20.6]}
39. Kh2 {[%clk 0:00:16.5]} 39... Bd8 {[%clk 0:00:17.9]} 40. Qf2 {[%clk
0:00:13.4]} 40... g5 {[%clk 0:00:15]} 41. f5 {[%clk 0:00:13.2]} 41... Bc7 {[%clk
0:00:12.6]} 42. fxe6 {[%clk 0:00:10.2]} 42... Bxe5+ {[%clk 0:00:11.6]} 43. Kg1
{[%clk 0:00:09.7]} 43... Qb1+ {[%clk 0:00:06.3]} 44. Be1 {[%clk 0:00:07.9]}
44... fxe6 {[%clk 0:00:05.3]} 45. Kg2 {[%clk 0:00:07.6]} 45... Qb2 {[%clk
0:00:04.8]} 46. Kf3 {[%clk 0:00:06.3]} 46... Qxf2+ {[%clk 0:00:04.6]} 47. Bxf2
{[%clk 0:00:05.9]} 47... Kf6 {[%clk 0:00:03.7]} 48. Ke4 {[%clk 0:00:06.6]} 48...
Bb2 {[%clk 0:00:03.2]} 49. Be1 {[%clk 0:00:06.6]} 49... Be5 {[%clk 0:00:03.1]}
50. Bd2 {[%clk 0:00:06.6]} 50... Bb2 {[%clk 0:00:03]} 51. b4 {[%clk 0:00:06.4]}
51... Be5 {[%clk 0:00:02.4]} 52. bxc5 {[%clk 0:00:06.9]} 52... bxc5 {[%clk
0:00:03.3]} 53. Ba5 {[%clk 0:00:07.5]} 53... Bd6 {[%clk 0:00:03.2]} 54. Bd8+
{[%clk 0:00:06.9]} 54... Be7 {[%clk 0:00:03.4]} 55. Bxe7+ {[%clk 0:00:06.2]}
55... Kxe7 {[%clk 0:00:03.6]} 56. Ke5 {[%clk 0:00:07.1]} 56... Kd7 {[%clk
0:00:02.8]} 57. Kf6 {[%clk 0:00:07.5]} 57... Kd6 {[%clk 0:00:03.7]} 58. Kxg5
{[%clk 0:00:07.4]} 58... Ke5 {[%clk 0:00:04.6]} 59. Kxh4 {[%clk 0:00:06.8]}
59... Ke4 {[%clk 0:00:05.5]} 60. g5 {[%clk 0:00:07.5]} 60... Kxe3 {[%clk
0:00:05.2]} 61. g6 {[%clk 0:00:08.1]} 61... Kd4 {[%clk 0:00:04.6]} 62. g7 {[%clk
0:00:09]} 62... e5 {[%clk 0:00:05.1]} 63. g8=Q {[%clk 0:00:09.9]} 63... e4
{[%clk 0:00:06]} 64. Qd5+ {[%clk 0:00:10.1]} 64... Ke3 {[%clk 0:00:05.6]} 65.
Qxc5+ {[%clk 0:00:10.6]} 65... Kd3 {[%clk 0:00:05.9]} 66. Qd5+ {[%clk 0:00:11]}
66... Kc3 {[%clk 0:00:06.3]} 67. c5 {[%clk 0:00:11.9]} 67... e3 {[%clk
0:00:05.4]} 68. c6 {[%clk 0:00:12.4]} 68... e2 {[%clk 0:00:05.6]} 69. Qe5+
{[%clk 0:00:13]} 69... Kd2 {[%clk 0:00:05.6]} 70. Qxe2+ {[%clk 0:00:13]} 70...
Kxe2 {[%clk 0:00:05.7]} 71. c7 {[%clk 0:00:13.9]} 71... Kf3 {[%clk 0:00:05.8]}
72. c8=Q {[%clk 0:00:14.8]} 72... Kg2 {[%clk 0:00:06.1]} 73. Qb7+ {[%clk
0:00:15]} 73... Kf2 {[%clk 0:00:06.1]} 74. Qb3 {[%clk 0:00:14.4]} 1-0